Workbook

Sheet Notice utilisation du tamis
B1: Notice utilisation du tamis
B2: 1- Retirer le couvercle du tamis. Insérer le couvercle debout dans la fente prévue à cet effet au milieu du compartiment >3mm (voir photo N°1). 2- Remplir le compartiment de gauche à ras bord. Porter une attention particulière à l'échantillonnage.
B3: 3- Enlever le couvercle et refermer le tamis en repositionnant le couvercle dans les fentes prévues à cet effet (voir photo N°2). 4- Positionner le tamis HUBBARD debout (compartiment > 3mm vers le haut) et agiter pendant 60 secondes en alternant de gauche à droite et de haut en bas.
B4: 6- Lecture des résultats: relever la quantité de chaque compartiment en utilisant l'échelle graduée situé à gauche de chaque compartiment (Voir photo N°3). 7- Reporter les résultats dans l'onglet "Saisie des données" de ce fichier Excel. 8- Enlever le couvercle et vider l'aliment du tamis. Nettoyer les tamis à l'aide d'un pinceau.
B12: www.hubbardbreeders.com

Sheet Saisie des données
E1: Granulométrie de l'aliment pour les Parentales
E4: Entreprise | F4: Hubbard | I4: Comment utiliser ce fichier?
E5: Date | F5: 2025-01-01 | I5: 1-Compléter uniquement les cellules en vert. Important de bien renseigner la formule d'aliment et la présentation pour que les recommandations d'aliment se mettent à jour. 2-Interprétation / Légende: Résultats conformes aux recommendations HUBBARD Résultats en dehors des recommendations HUBBARD
E6: Génétique | F6: PS EFFICIENCY PLUS
E7: Nom de la ferme | F7: Cocorico
E8: N° bâtiment | F8: 1
E9: Fabricant d'aliment | F9: Feed Plus
E10: Formule d'aliment | F10: Ponte I
E11: Présentation | F11: Farine
F13: Remplir les valeurs lues sur le tamis | L13: % de chaque catégorie de particule
F14: >3mm | G14: 2-3mm | H14: 1-2mm | I14: <1mm | J14: Total | L14: >3mm | M14: 2-3mm | N14: 1-2mm | O14: <1mm | P14: Total
E15: Sous-échantillon 1 | F15: 10 | G15: 45 | H15: 35 | I15: 10 | J15: =IF(OR(F15="",G15="",H15="",I15=""),"",SUM(F15:I15)) -> 100 | L15: =IF(J15="","",F15/$J15) -> 0.1 | M15: =IF(J15="","",G15/$J15) -> 0.45 | N15: =IF(J15="","",H15/$J15) -> 0.35 | O15: =IF(J15="","",I15/$J15) -> 0.1 | P15: =IF(J15="","",J15/$J15) -> 1
E16: Sous-échantillon 2 | F16: 12.5 | G16: 42.5 | H16: 32.5 | I16: 15 | J16: =IF(OR(F16="",G16="",H16="",I16=""),"",SUM(F16:I16)) -> 102.5 | L16: =IF(J16="","",F16/$J16) -> 0.1219512195 | M16: =IF(J16="","",G16/$J16) -> 0.4146341463 | N16: =IF(J16="","",H16/$J16) -> 0.3170731707 | O16: =IF(J16="","",I16/$J16) -> 0.1463414634 | P16: =IF(J16="","",J16/$J16) -> 1
E17: Sous-échantillon 3 | F17: 15 | G17: 40 | H17: 30 | I17: 15 | J17: 100 | L17: =IF(J17="","",F17/$J17) -> 0.15 | M17: 0.4 | N17: 0.3 | O17: 0.15 | P17: 1
E18: Sous-échantillon 4 | F18: 17.5 | G18: 37.5 | H18: 27.5 | I18: 12.5 | J18: 95 | L18: 0.1842105263 | M18: =IF(J18="","",G18/$J18) -> 0.3947368421 | N18: 0.2894736842 | O18: 0.1315789474 | P18: 1
E19: Sous-échantillon 5 | F19: 20 | G19: 35 | H19: 25 | I19: 15 | J19: =IF(OR(F19="",G19="",H19="",I19=""),"",SUM(F19:I19)) -> 95 | L19: =IF(J19="","",F19/$J19) -> 0.2105263158 | M19: =IF(J19="","",G19/$J19) -> 0.3684210526 | N19: 0.2631578947 | O19: 0.1578947368 | P19: 1
E20: Moyenne | F20: =IF($F$15>0.001,AVERAGE(F15:F19),"") -> 15 | G20: =IF($F$15>0.001,AVERAGE(G15:G19),"") -> 40 | H20: =IF($F$15>0.001,AVERAGE(H15:H19),"") -> 30 | I20: =IF($F$15>0.001,AVERAGE(I15:I19),"") -> 13.5 | J20: =IF($F$15>0.001,AVERAGE(J15:J19),"") -> 98.5 | L20: =IF($F$15>0.001,AVERAGE(L15:L19),"") -> 0.1533376123 | M20: =IF($F$15>0.001,AVERAGE(M15:M19),"") -> 0.4055584082 | N20: =IF($F$15>0.001,AVERAGE(N15:N19),"") -> 0.3039409499 | O20: =IF($F$15>0.001,AVERAGE(O15:O19),"") -> 0.1371630295 | P20: =IF($F$15>0.001,AVERAGE(P15:P19),"") -> 1
E21: Recommendation Hubbard | F21: =IF(L21="","",L21*100) -> 15 | G21: =IF(M21="","",M21*100) -> 40 | H21: =IF(N21="","",N21*100) -> 30 | I21: =IF(O21="","",O21*100) -> 15 | J21: =IF(P21="","",P21*100) -> 100 | L21: =IF(VLOOKUP($F$11&$F$10&$L$14,Recommandations!A2:E97,5)="N/A","",VLOOKUP($F$11&$F$10&$L$14,Recommandations!A2:E97,5)) -> 0.15 | M21: =IF(VLOOKUP($F$11&$F$10&$M$14,Recommandations!$A$2:$E$97,5)="N/A","",VLOOKUP($F$11&$F$10&$M$14,Recommandations!$A$2:$E$97,5)) -> 0.4 | N21: =IF(VLOOKUP($F$11&$F$10&$N$14,Recommandations!$A$2:$E$97,5)="N/A","",VLOOKUP($F$11&$F$10&$N$14,Recommandations!$A$2:$E$97,5)) -> 0.3 | O21: =IF(VLOOKUP($F$11&$F$10&$O$14,Recommandations!$A$2:$E$97,5)="N/A","",VLOOKUP($F$11&$F$10&$O$14,Recommandations!$A$2:$E$97,5)) -> 0.15 | P21: =IF(SUM(L21:O21)=0,"",SUM(L21:O21)) -> 1
E43: Veuillez consulter votre référent technique Hubbard pour obtenir de plus amples détails.
E44: www.hubbardbreeders.com
E46: Les données de performances fournies dans ce document ont été établies à partir de notre expérience et des résultats obtenus de nos propres animaux d’expérimentation et des animaux de notre clientèle. Les données de ce document ne sauraient en aucun cas garantir l’obtention des mêmes performances dans des conditions de nutrition, de densité ou d’environnement physique ou biologique différentes. En particulier (mais sans limitation de ce qui précède), nous ne donnons aucune garantie d’adéquation au but, à la performance, à l’usage, à la nature ou la qualité des animaux, ni aucune garantie de conformité avec les réglementations locales relatives à la santé, au bien-être, ou autres aspects des productions animales. Hubbard ne fait aucune déclaration quant au caractère précis ou complet des informations contenues dans ce document. v 2025-01

Sheet Recommandations (hidden)
A1: ID | B1: Présentation | C1: Taille des particules | D1: Formule | E1: Recommendation | F1: Qualité de la présentation
A2: FarineCroissance<1mm | B2: Farine | C2: <1mm | D2: Croissance | E2: 0.2 | F2: Good | H2: Miette | I2: Pré-démarrage | J2: PS Female EFFICIENCY PLUS
A3: FarineCroissance>3mm | B3: Farine | C3: >3mm | D3: Croissance | E3: 0.1 | F3: Good | H3: Farine | I3: Démarrage | J3: PS Premium Female (JA57; JA57Ki; JA87; REDBRO; Redbro Mini; P6N)
A4: FarineCroissance1-2mm | B4: Farine | C4: 1-2mm | D4: Croissance | E4: 0.35 | F4: Good | H4: Granulé | I4: Croissance | J4: PS Males (M77/M99)
A5: FarineCroissance2-3mm | B5: Farine | C5: 2-3mm | D5: Croissance | E5: 0.35 | F5: Good | I5: Transition | J5: PS Males (Intermediate growth males, slow growth males)
A6: FarineDémarrage<1mm | B6: Farine | C6: <1mm | D6: Démarrage | E6: 0.2 | F6: Good | I6: Montée en ponte
A7: FarineDémarrage>3mm | B7: Farine | C7: >3mm | D7: Démarrage | E7: 0.05 | F7: Good | I7: Ponte I
A8: FarineDémarrage1-2mm | B8: Farine | C8: 1-2mm | D8: Démarrage | E8: 0.5 | F8: Good | I8: Ponte II
A9: FarineDémarrage2-3mm | B9: Farine | C9: 2-3mm | D9: Démarrage | E9: 0.25 | F9: Good | I9: Ponte III
A10: FarineMontée en ponte<1mm | B10: Farine | C10: <1mm | D10: Montée en ponte | E10: 0.15 | F10: Good
A11: FarineMontée en ponte>3mm | B11: Farine | C11: >3mm | D11: Montée en ponte | E11: 0.15 | F11: Good
A12: FarineMontée en ponte1-2mm | B12: Farine | C12: 1-2mm | D12: Montée en ponte | E12: 0.3 | F12: Good
A13: FarineMontée en ponte2-3mm | B13: Farine | C13: 2-3mm | D13: Montée en ponte | E13: 0.4 | F13: Good
A14: FarinePonte I<1mm | B14: Farine | C14: <1mm | D14: Ponte I | E14: 0.15 | F14: Good
A15: FarinePonte I>3mm | B15: Farine | C15: >3mm | D15: Ponte I | E15: 0.15 | F15: Good
A16: FarinePonte I1-2mm | B16: Farine | C16: 1-2mm | D16: Ponte I | E16: 0.3 | F16: Good
A17: FarinePonte I2-3mm | B17: Farine | C17: 2-3mm | D17: Ponte I | E17: 0.4 | F17: Good
A18: FarinePonte II<1mm | B18: Farine | C18: <1mm | D18: Ponte II | E18: 0.15 | F18: Good
A19: FarinePonte II>3mm | B19: Farine | C19: >3mm | D19: Ponte II | E19: 0.15 | F19: Good
A20: FarinePonte II1-2mm | B20: Farine | C20: 1-2mm | D20: Ponte II | E20: 0.3 | F20: Good
A21: FarinePonte II2-3mm | B21: Farine | C21: 2-3mm | D21: Ponte II | E21: 0.4 | F21: Good
A22: FarinePonte III<1mm | B22: Farine | C22: <1mm | D22: Ponte III | E22: 0.15 | F22: Good
A23: FarinePonte III>3mm | B23: Farine | C23: >3mm | D23: Ponte III | E23: 0.15 | F23: Good
A24: FarinePonte III1-2mm | B24: Farine | C24: 1-2mm | D24: Ponte III | E24: 0.3 | F24: Good
A25: FarinePonte III2-3mm | B25: Farine | C25: 2-3mm | D25: Ponte III | E25: 0.4 | F25: Good
A26: FarinePré-démarrage<1mm | B26: Farine | C26: <1mm | D26: Pré-démarrage | E26: 0.2 | F26: Good
A27: FarinePré-démarrage>3mm | B27: Farine | C27: >3mm | D27: Pré-démarrage | E27: 0.05 | F27: Good
A28: FarinePré-démarrage1-2mm | B28: Farine | C28: 1-2mm | D28: Pré-démarrage | E28: 0.5 | F28: Good
A29: FarinePré-démarrage2-3mm | B29: Farine | C29: 2-3mm | D29: Pré-démarrage | E29: 0.25 | F29: Good
A30: FarineTransition<1mm | B30: Farine | C30: <1mm | D30: Transition | E30: 0.2 | F30: Good
A31: FarineTransition>3mm | B31: Farine | C31: >3mm | D31: Transition | E31: 0.1 | F31: Good
A32: FarineTransition1-2mm | B32: Farine | C32: 1-2mm | D32: Transition | E32: 0.35 | F32: Good
A33: FarineTransition2-3mm | B33: Farine | C33: 2-3mm | D33: Transition | E33: 0.35 | F33: Good
A34: GranuléCroissance<1mm | B34: Granulé | C34: <1mm | D34: Croissance | E34: 0.1 | F34: Good
A35: GranuléCroissance>3mm | B35: Granulé | C35: >3mm | D35: Croissance | E35: 0.7 | F35: Good
A36: GranuléCroissance1-2mm | B36: Granulé | C36: 1-2mm | D36: Croissance | E36: 0.1 | F36: Good
A37: GranuléCroissance2-3mm | B37: Granulé | C37: 2-3mm | D37: Croissance | E37: 0.1 | F37: Good
A38: GranuléDémarrage<1mm | B38: Granulé | C38: <1mm | D38: Démarrage | E38: N/A | F38: Good
A39: GranuléDémarrage>3mm | B39: Granulé | C39: >3mm | D39: Démarrage | E39: N/A | F39: Good
A40: GranuléDémarrage1-2mm | B40: Granulé | C40: 1-2mm | D40: Démarrage | E40: N/A | F40: Good
A41: GranuléDémarrage2-3mm | B41: Granulé | C41: 2-3mm | D41: Démarrage | E41: N/A | F41: Good
A42: GranuléMontée en ponte<1mm | B42: Granulé | C42: <1mm | D42: Montée en ponte | E42: 0.1 | F42: Good
A43: GranuléMontée en ponte>3mm | B43: Granulé | C43: >3mm | D43: Montée en ponte | E43: 0.7 | F43: Good
A44: GranuléMontée en ponte1-2mm | B44: Granulé | C44: 1-2mm | D44: Montée en ponte | E44: 0.1 | F44: Good
A45: GranuléMontée en ponte2-3mm | B45: Granulé | C45: 2-3mm | D45: Montée en ponte | E45: 0.1 | F45: Good
A46: GranuléPonte I<1mm | B46: Granulé | C46: <1mm | D46: Ponte I | E46: 0.1 | F46: Good
A47: GranuléPonte I>3mm | B47: Granulé | C47: >3mm | D47: Ponte I | E47: 0.7 | F47: Good
A48: GranuléPonte I1-2mm | B48: Granulé | C48: 1-2mm | D48: Ponte I | E48: 0.1 | F48: Good
A49: GranuléPonte I2-3mm | B49: Granulé | C49: 2-3mm | D49: Ponte I | E49: 0.1 | F49: Good
A50: GranuléPonte II<1mm | B50: Granulé | C50: <1mm | D50: Ponte II | E50: 0.1 | F50: Good
A51: GranuléPonte II>3mm | B51: Granulé | C51: >3mm | D51: Ponte II | E51: 0.7 | F51: Good
A52: GranuléPonte II1-2mm | B52: Granulé | C52: 1-2mm | D52: Ponte II | E52: 0.1 | F52: Good
A53: GranuléPonte II2-3mm | B53: Granulé | C53: 2-3mm | D53: Ponte II | E53: 0.1 | F53: Good
A54: GranuléPonte III<1mm | B54: Granulé | C54: <1mm | D54: Ponte III | E54: 0.1 | F54: Good
A55: GranuléPonte III>3mm | B55: Granulé | C55: >3mm | D55: Ponte III | E55: 0.7 | F55: Good
A56: GranuléPonte III1-2mm | B56: Granulé | C56: 1-2mm | D56: Ponte III | E56: 0.1 | F56: Good
A57: GranuléPonte III2-3mm | B57: Granulé | C57: 2-3mm | D57: Ponte III | E57: 0.1 | F57: Good
A58: GranuléPré-démarrage<1mm | B58: Granulé | C58: <1mm | D58: Pré-démarrage | E58: N/A | F58: Good
A59: GranuléPré-démarrage>3mm | B59: Granulé | C59: >3mm | D59: Pré-démarrage | E59: N/A | F59: Good
A60: GranuléPré-démarrage1-2mm | B60: Granulé | C60: 1-2mm | D60: Pré-démarrage | E60: N/A | F60: Good
A61: GranuléPré-démarrage2-3mm | B61: Granulé | C61: 2-3mm | D61: Pré-démarrage | E61: N/A | F61: Good
A62: GranuléTransition<1mm | B62: Granulé | C62: <1mm | D62: Transition | E62: 0.1 | F62: Good
A63: GranuléTransition>3mm | B63: Granulé | C63: >3mm | D63: Transition | E63: 0.7 | F63: Good
A64: GranuléTransition1-2mm | B64: Granulé | C64: 1-2mm | D64: Transition | E64: 0.1 | F64: Good
A65: GranuléTransition2-3mm | B65: Granulé | C65: 2-3mm | D65: Transition | E65: 0.1 | F65: Good
A66: MietteCroissance<1mm | B66: Miette | C66: <1mm | D66: Croissance | E66: 0.1 | F66: Good
A67: MietteCroissance>3mm | B67: Miette | C67: >3mm | D67: Croissance | E67: 0.5 | F67: Good
A68: MietteCroissance1-2mm | B68: Miette | C68: 1-2mm | D68: Croissance | E68: 0.1 | F68: Good
A69: MietteCroissance2-3mm | B69: Miette | C69: 2-3mm | D69: Croissance | E69: 0.3 | F69: Good
A70: MietteDémarrage<1mm | B70: Miette | C70: <1mm | D70: Démarrage | E70: 0.05 | F70: Good
A71: MietteDémarrage>3mm | B71: Miette | C71: >3mm | D71: Démarrage | E71: 0 | F71: Good
A72: MietteDémarrage1-2mm | B72: Miette | C72: 1-2mm | D72: Démarrage | E72: 0.55 | F72: Good
A73: MietteDémarrage2-3mm | B73: Miette | C73: 2-3mm | D73: Démarrage | E73: 0.4 | F73: Good
A74: MietteMontée en ponte<1mm | B74: Miette | C74: <1mm | D74: Montée en ponte | E74: 0.1 | F74: Good
A75: MietteMontée en ponte>3mm | B75: Miette | C75: >3mm | D75: Montée en ponte | E75: 0.5 | F75: Good
A76: MietteMontée en ponte1-2mm | B76: Miette | C76: 1-2mm | D76: Montée en ponte | E76: 0.1 | F76: Good
A77: MietteMontée en ponte2-3mm | B77: Miette | C77: 2-3mm | D77: Montée en ponte | E77: 0.3 | F77: Good
A78: MiettePonte I<1mm | B78: Miette | C78: <1mm | D78: Ponte I | E78: 0.1 | F78: Good
A79: MiettePonte I>3mm | B79: Miette | C79: >3mm | D79: Ponte I | E79: 0.5 | F79: Good
A80: MiettePonte I1-2mm | B80: Miette | C80: 1-2mm | D80: Ponte I | E80: 0.1 | F80: Good
A81: MiettePonte I2-3mm | B81: Miette | C81: 2-3mm | D81: Ponte I | E81: 0.3 | F81: Good
A82: MiettePonte II<1mm | B82: Miette | C82: <1mm | D82: Ponte II | E82: 0.1 | F82: Good
A83: MiettePonte II>3mm | B83: Miette | C83: >3mm | D83: Ponte II | E83: 0.5 | F83: Good
A84: MiettePonte II1-2mm | B84: Miette | C84: 1-2mm | D84: Ponte II | E84: 0.1 | F84: Good
A85: MiettePonte II2-3mm | B85: Miette | C85: 2-3mm | D85: Ponte II | E85: 0.3 | F85: Good
A86: MiettePonte III<1mm | B86: Miette | C86: <1mm | D86: Ponte III | E86: 0.1 | F86: Good
A87: MiettePonte III>3mm | B87: Miette | C87: >3mm | D87: Ponte III | E87: 0.5 | F87: Good
A88: MiettePonte III1-2mm | B88: Miette | C88: 1-2mm | D88: Ponte III | E88: 0.1 | F88: Good
A89: MiettePonte III2-3mm | B89: Miette | C89: 2-3mm | D89: Ponte III | E89: 0.3 | F89: Good
A90: MiettePré-démarrage<1mm | B90: Miette | C90: <1mm | D90: Pré-démarrage | E90: 0.05 | F90: Good
A91: MiettePré-démarrage>3mm | B91: Miette | C91: >3mm | D91: Pré-démarrage | E91: 0 | F91: Good
A92: MiettePré-démarrage1-2mm | B92: Miette | C92: 1-2mm | D92: Pré-démarrage | E92: 0.55 | F92: Good
A93: MiettePré-démarrage2-3mm | B93: Miette | C93: 2-3mm | D93: Pré-démarrage | E93: 0.4 | F93: Good
A94: MietteTransition<1mm | B94: Miette | C94: <1mm | D94: Transition | E94: 0.1 | F94: Good
A95: MietteTransition>3mm | B95: Miette | C95: >3mm | D95: Transition | E95: 0.5 | F95: Good
A96: MietteTransition1-2mm | B96: Miette | C96: 1-2mm | D96: Transition | E96: 0.1 | F96: Good
A97: MietteTransition2-3mm | B97: Miette | C97: 2-3mm | D97: Transition | E97: 0.3 | F97: Good
